fUST/lending_fUST_20250430
["ID","MTS","AMOUNT","RATE_DAILY","PERIOD"]
[359447849,1746022232406,-500.0,0.00027373,2]
[359447850,1746022232415,-500.0,0.00027373,2]
[359447851,1746022232425,-500.0,0.00027373,2]
[359447852,1746022232434,-500.0,0.00027373,2]
[359447853,1746022232444,-500.0,0.00027373,2]
[359447854,1746022232453,-500.0,0.00027373,2]
[359447855,1746022232463,-543.68454058,0.00027373,2]
[359447856,1746022232472,-511.29337322,0.00027373,2]
[359447857,1746022232482,-500.0,0.00027373,2]
[359447858,1746022232492,-500.0,0.00027373,2]
[359447859,1746022232501,-500.0,0.00027373,2]
[359447860,1746022232510,-300.0,0.00027373,2]
[359447861,1746022232520,-491.88064018,0.00027373,2]
[359447862,1746022232531,-185.99525319,0.00027373,2]
[359447863,1746022232541,-500.0,0.00027373,2]
[359447864,1746022232550,-500.0,0.00027373,2]
[359447865,1746022232560,-500.91052564,0.00027373,2]
[359447866,1746022232570,-500.0,0.00027373,2]
[359447867,1746022232580,-500.0,0.00027373,2]
[359447868,1746022232590,-307.44,0.00027387,2]
[359447869,1746022232601,-47141.640007,0.00027387,2]
[359447870,1746022232611,-163.18,0.00027387,3]
[359447871,1746022232622,-489.56,0.00027387,3]
[359447872,1746022232632,-279.37455519,0.00027396,2]
[359447873,1746022232641,-500.0,0.00027396,2]
[359447874,1746022232651,-500.0,0.00027396,2]
[359447875,1746022232661,-257.09790484,0.00027396,2]
[359447876,1746022232670,-414.70916987,0.00027396,2]
[359447877,1746022232680,-400.0,0.00027397,2]
[359447878,1746022232690,-400.0,0.00027397,2]
[359447879,1746022232700,-400.0,0.00027397,2]
[359447880,1746022232709,-400.0,0.00027397,2]
[359447881,1746022232719,-502.33157721,0.00027397,2]
[359447882,1746022232729,-500.0,0.00027397,2]
[359447883,1746022232739,-500.0,0.00027397,2]
[359447884,1746022232748,-400.0,0.00027397,2]
[359447885,1746022232758,-400.0,0.00027397,2]
[359447886,1746022232768,-400.0,0.00027397,2]
[359447887,1746022232778,-156.89615278,0.00027397,2]
[359447888,1746022232790,-400.0,0.00027397,2]
[359447889,1746022232802,-400.0,0.00027397,2]
[359447890,1746022232812,-204.53791224,0.00027397,2]
[359447891,1746022232821,-400.0,0.00027397,2]
[359447892,1746022232830,-400.0,0.00027397,2]
[359447893,1746022232840,-400.0,0.00027397,2]
[359447894,1746022232851,-325.89037028,0.00027397,2]
[359447895,1746022232861,-400.0,0.00027397,2]
[359447896,1746022232871,-400.0,0.00027397,2]
[359447897,1746022232881,-400.0,0.00027397,2]
[359447898,1746022232891,-400.0,0.00027397,2]
[359447899,1746022232901,-500.0,0.00027397,2]
[359447900,1746022232911,-400.0,0.00027397,2]
[359447901,1746022232921,-500.0,0.00027397,2]
[359447902,1746022232930,-500.0,0.00027397,2]
[359447903,1746022232939,-402.63,0.00027397,2]
[359447904,1746022232949,-400.0,0.00027397,2]
[359447905,1746022232958,-400.0,0.00027397,2]
[359447906,1746022232968,-400.0,0.00027397,2]
[359447907,1746022232977,-203.69753193,0.00027397,2]
[359447908,1746022232986,-400.0,0.00027397,2]
[359447909,1746022232995,-400.0,0.00027397,2]
[359447910,1746022233005,-400.0,0.00027397,2]
[359447911,1746022233015,-400.0,0.00027397,2]
[359447912,1746022233024,-400.0,0.00027397,2]
[359447913,1746022233033,-400.0,0.00027397,2]
[359447914,1746022233043,-400.0,0.00027397,2]
[359447915,1746022233052,-400.0,0.00027397,2]
[359447916,1746022233062,-400.0,0.00027397,2]
[359447917,1746022233072,-400.0,0.00027397,2]
[359447918,1746022233081,-400.0,0.00027397,2]
[359447919,1746022233091,-521.01,0.00027397,2]
[359447920,1746022233102,-400.0,0.00027397,2]
[359447921,1746022233112,-500.0,0.00027397,2]
[359447922,1746022233122,-500.0,0.00027397,2]
[359447923,1746022233131,-400.0,0.00027397,2]
[359447924,1746022233141,-400.0,0.00027397,2]
[359447925,1746022233151,-501.3554026,0.00027397,2]
[359447926,1746022233162,-434.46404568,0.00027397,2]
[359447927,1746022233171,-501.01614136,0.00027397,2]
[359447928,1746022233181,-400.0,0.00027397,2]
[359447929,1746022233191,-400.0,0.00027397,2]
[359447930,1746022233201,-500.0,0.00027397,2]
[359447931,1746022233210,-400.0,0.00027397,2]
[359447932,1746022233219,-503.33318444,0.00027397,2]
[359447933,1746022233228,-400.0,0.00027397,2]
[359447934,1746022233238,-400.0,0.00027397,2]
[359447935,1746022233248,-400.0,0.00027397,2]
[359447936,1746022233258,-400.0,0.00027397,2]
[359447937,1746022233269,-500.0,0.00027397,2]
[359447938,1746022233279,-500.0,0.00027397,2]
[359447939,1746022233288,-1000.0,0.00027397,2]
[359447940,1746022233298,-505.67944032,0.00027397,2]
[359447941,1746022233308,-505.89638131,0.00027397,2]
[359447942,1746022233318,-500.0,0.00027397,2]
[359447943,1746022233328,-500.0,0.00027397,2]
[359447944,1746022233338,-500.0,0.00027397,2]
[359447945,1746022233350,-500.0,0.00027397,2]
[359447946,1746022233360,-403.34823369,0.00027397,2]
[359447947,1746022233370,-500.0,0.00027397,2]
[359447948,1746022233380,-400.0,0.00027397,2]
[359447949,1746022233391,-400.0,0.00027397,2]
[359447950,1746022233401,-510.96321179,0.00027397,2]
[359447951,1746022233411,-400.0,0.00027397,2]
[359447952,1746022233421,-500.0,0.00027397,2]
[359447953,1746022233432,-439.8,0.00027397,2]
[359447954,1746022233443,-400.0,0.00027397,2]
[359447955,1746022233453,-400.0,0.00027397,2]
[359447956,1746022233464,-500.0,0.00027397,2]
[359447957,1746022233474,-400.0,0.00027397,2]
[359447958,1746022233485,-500.0,0.00027397,2]
[359447959,1746022233495,-400.0,0.00027397,2]
[359447960,1746022233505,-400.0,0.00027397,2]
[359447961,1746022233515,-400.0,0.00027397,2]
[359447962,1746022233525,-500.0,0.00027397,2]
[359447963,1746022233536,-500.0,0.00027397,2]
[359447964,1746022233547,-501.38540952,0.00027397,2]
[359447965,1746022233558,-403.39570141,0.00027397,2]
[359447966,1746022233568,-400.0,0.00027397,2]
[359447967,1746022233579,-400.0,0.00027397,2]
[359447968,1746022233588,-500.0,0.00027397,2]
[359447969,1746022233600,-485.09,0.00027397,2]
[359447970,1746022233610,-500.0,0.00027397,2]
[359447971,1746022233620,-400.0,0.00027397,2]
[359447972,1746022233630,-400.0,0.00027397,2]
[359447973,1746022233640,-500.0,0.00027397,2]
[359447974,1746022233650,-400.0,0.00027397,2]
[359447975,1746022233660,-400.0,0.00027397,2]
[359447976,1746022233669,-489.59,0.00027397,2]
[359447977,1746022233679,-500.0,0.00027397,2]
[359447978,1746022233689,-500.0,0.00027397,2]
[359447979,1746022233699,-500.0,0.00027397,2]
[359447980,1746022233709,-400.0,0.00027397,2]
[359447981,1746022233719,-201.66323078,0.00027397,2]
[359447982,1746022233729,-400.0,0.00027397,2]
[359447983,1746022233739,-400.0,0.00027397,2]
[359447984,1746022233749,-500.0,0.00027397,2]
[359447985,1746022233759,-421.39,0.00027397,2]
[359447986,1746022233769,-500.0,0.00027397,2]
[359447987,1746022233779,-504.40342907,0.00027397,2]
[359447988,1746022233793,-504.31785066,0.00027397,2]
[359447989,1746022233803,-325.92712347,0.00027397,2]
[359447990,1746022233812,-500.0,0.00027397,2]
[359447991,1746022233822,-226.32817536,0.00027397,2]
[359447992,1746022233832,-400.0,0.00027397,2]
[359447993,1746022233842,-500.0,0.00027397,2]
[359447994,1746022233853,-500.0,0.00027397,2]
[359447995,1746022233863,-469.03,0.00027397,2]
[359447996,1746022233874,-500.0,0.00027397,2]
[359447997,1746022233885,-400.0,0.00027397,2]
[359447998,1746022233895,-500.0,0.00027397,2]
[359447999,1746022233904,-500.0,0.00027397,2]
[359448000,1746022233914,-400.0,0.00027397,2]
[359448001,1746022233923,-500.0,0.00027397,2]
[359448002,1746022233933,-500.0,0.00027397,2]
[359448003,1746022233943,-400.0,0.00027397,2]
[359448004,1746022233952,-420.54,0.00027397,2]
[359448005,1746022233962,-400.0,0.00027397,2]
[359448006,1746022233972,-400.0,0.00027397,2]
[359448007,1746022233981,-500.0,0.00027397,2]
[359448008,1746022233990,-353.65622271,0.00027397,2]
[359448009,1746022234000,-400.0,0.00027397,2]
[359448010,1746022234009,-401.07,0.00027397,2]
[359448011,1746022234018,-537.09069218,0.00027397,2]
[359448012,1746022234028,-400.0,0.00027397,2]
[359448013,1746022234037,-400.0,0.00027397,2]
[359448014,1746022234047,-400.0,0.00027397,2]
[359448015,1746022234056,-400.0,0.00027397,2]
[359448016,1746022234066,-400.0,0.00027397,2]
[359448017,1746022234075,-400.0,0.00027397,2]
[359448018,1746022234085,-400.0,0.00027397,2]
[359448019,1746022234097,-400.0,0.00027397,2]
[359448020,1746022234106,-400.0,0.00027397,2]
[359448021,1746022234116,-400.0,0.00027397,2]
[359448022,1746022234126,-400.0,0.00027397,2]
[359448023,1746022234135,-400.0,0.00027397,2]
[359448024,1746022234144,-400.0,0.00027397,2]
[359448025,1746022234154,-400.0,0.00027397,2]
[359448026,1746022234163,-241.99508724,0.00027397,2]
[359448027,1746022234173,-400.0,0.00027397,2]
[359448028,1746022234183,-400.0,0.00027397,2]
[359448029,1746022234193,-400.0,0.00027397,2]
[359448030,1746022234202,-400.0,0.00027397,2]
[359448031,1746022234211,-500.0,0.00027397,2]
[359448032,1746022234221,-270.01274143,0.00027397,2]
[359448033,1746022234230,-400.0,0.00027397,2]
[359448034,1746022234240,-400.0,0.00027397,2]
[359448035,1746022234249,-400.0,0.00027397,2]
[359448036,1746022234259,-400.0,0.00027397,2]
[359448037,1746022234268,-400.0,0.00027397,2]
[359448038,1746022234278,-310.46633844,0.00027397,2]
[359448039,1746022234288,-400.0,0.00027397,2]
[359448040,1746022234297,-400.0,0.00027397,2]
[359448041,1746022234306,-233.22352708,0.00027397,2]
[359448042,1746022234316,-400.0,0.00027397,2]
[359448043,1746022234325,-400.0,0.00027397,2]
[359448044,1746022234335,-419.05,0.00027397,2]
[359448045,1746022234346,-400.0,0.00027397,2]
[359448046,1746022234357,-400.0,0.00027397,2]
[359448047,1746022234367,-400.0,0.00027397,2]
[359448048,1746022234376,-479.72,0.00027397,2]
[359448049,1746022234386,-400.0,0.00027397,2]
[359448050,1746022234396,-400.0,0.00027397,2]
[359448051,1746022234406,-400.0,0.00027397,2]
[359448052,1746022234415,-400.0,0.00027397,2]
[359448053,1746022234425,-515.58,0.00027397,2]
[359448054,1746022234435,-332.85343223,0.00027397,2]
[359448055,1746022234504,-8.8370647,0.00027397,2]
[359448056,1746022234514,-400.0,0.00027397,2]
[359448057,1746022234524,-400.0,0.00027397,2]
[359448058,1746022234534,-400.0,0.00027397,2]
[359448059,1746022234544,-339.40315856,0.00027397,2]
[359448060,1746022234554,-400.0,0.00027397,2]
[359448061,1746022234563,-400.0,0.00027397,2]
[359448062,1746022234573,-400.0,0.00027397,2]
[359448063,1746022234582,-400.0,0.00027397,2]
[359448064,1746022234592,-153.21702523,0.00027397,2]
[359448065,1746022234604,-400.0,0.00027397,2]
[359448066,1746022234614,-328.02,0.00027397,2]
[359448067,1746022234625,-400.0,0.00027397,2]
[359448068,1746022234634,-492.02,0.00027397,2]
[359448069,1746022234644,-400.0,0.00027397,2]
[359448070,1746022234653,-400.0,0.00027397,2]
[359448071,1746022234663,-400.0,0.00027397,2]
[359448072,1746022234673,-400.0,0.00027397,2]
[359448073,1746022234683,-400.0,0.00027397,2]
[359448074,1746022234692,-419.14,0.00027397,2]
[359448075,1746022234702,-400.0,0.00027397,2]
[359448076,1746022234711,-905.341494,0.00027397,2]
[359448077,1746022234721,-307.44,0.0002766,2]
[359448078,1746022234731,-400.0,0.00027671,2]
[359448079,1746022234741,-500.0,0.00027671,2]
[359448080,1746022234750,-400.0,0.00027671,2]
[359448081,1746022234760,-291.68,0.00027671,2]
[359448082,1746022234770,-400.0,0.00027671,2]
[359448083,1746022234780,-400.0,0.00027671,2]
[359448084,1746022234790,-400.0,0.00027671,2]
[359448085,1746022234803,-400.0,0.00027671,2]
[359448086,1746022234813,-400.0,0.00027671,2]
[359448087,1746022234823,-400.0,0.00027671,2]
[359448088,1746022234833,-304.98,0.00027671,2]
[359448089,1746022234843,-400.0,0.00027671,2]
[359448090,1746022234855,-400.0,0.00027671,2]
[359448091,1746022234865,-400.0,0.00027671,2]
[359448092,1746022234875,-500.0,0.00027671,2]
[359448093,1746022234884,-400.0,0.00027671,2]
[359448094,1746022234894,-400.0,0.00027671,2]
[359448095,1746022234904,-197.23,0.00027671,2]
[359448096,1746022234914,-230.04183517,0.00027671,2]
[359448153,1746022237820,-177.43276653,0.00027361,2]
[359448154,1746022237830,-21.51816483,0.00027671,2]
[359448156,1746022237840,-275.48,0.00027671,2]
[359448158,1746022237851,-204.79,0.00027671,2]
[359448159,1746022237860,-400.0,0.00027671,2]
[359448160,1746022237872,-400.0,0.00027671,2]
[359448162,1746022237882,-294.08,0.00027671,2]
[359448163,1746022237892,-326.31,0.00027671,2]
[359448164,1746022237901,-400.0,0.00027671,2]
[359448165,1746022237910,-281.77009374,0.00027673,2]
[359448166,1746022237920,-500.0,0.00027673,5]
[359448167,1746022237930,-500.0,0.00027673,5]
[359448168,1746022237939,-356.62277822,0.0002788,2]
[359448169,1746022237949,-400.0,0.00027945,2]
[359448170,1746022237959,-400.0,0.00027945,2]
[359448171,1746022237969,-400.0,0.00027945,2]
[359448172,1746022237979,-156.19,0.00027945,2]
[359448173,1746022237989,-294.36,0.00027945,2]
[359448174,1746022237998,-400.0,0.00027945,2]
[359448175,1746022238008,-400.0,0.00027945,2]
[359448177,1746022238017,-174.51,0.00027945,2]
[359448179,1746022238026,-218.96,0.00027945,2]
[359448181,1746022238036,-500.0,0.00028013,5]
[359448183,1746022238045,-182.04053198,0.00028118,2]
[359448185,1746022238054,-160.0,0.00028118,2]
[359448187,1746022238064,-160.0,0.00028183,2]
[359448189,1746022238073,-840.90604152,0.00028183,2]
[359448191,1746022238082,-214.42,0.00028219,2]
[359448193,1746022238092,-247.76,0.00028219,2]
[359448195,1746022238104,-281.04,0.00028219,2]
[359448197,1746022238114,-211.88,0.00028219,2]
[359448198,1746022238123,-289.11,0.00028219,2]
[359448199,1746022238132,-545.0,0.00028728,2]
[359448200,1746022238141,-707.0,0.00028728,2]
[359448201,1746022238151,-2245.0,0.00028728,2]
[359448202,1746022238160,-326.36,0.00028757,3]
[359448203,1746022238169,-500.0,0.00028987,5]
[359448204,1746022238179,-243.25504174,0.00029098,2]
[359448205,1746022238189,-193.1882896,0.00029301,120]
[359448206,1746022238198,-199.07884869,0.00030137,2]
[359448207,1746022238207,-203.46537282,0.0003049,2]
[359448208,1746022238217,-243.25504174,0.00030927,2]
[359448209,1746022238226,-23570.8200035,0.00031718,2]
[359448210,1746022238236,-545.0,0.00031728,2]
[359448211,1746022238245,-707.0,0.00031728,2]
[359448212,1746022238255,-2245.0,0.00031728,2]
[359448213,1746022238264,-243.25504174,0.00032755,2]
[359448214,1746022238273,-1000.0,0.00032852,5]
[359448215,1746022238283,-500.0,0.00032852,5]
[359448216,1746022238293,-500.0,0.00032852,5]
[359448217,1746022238302,-1000.0,0.00032852,5]
[359448218,1746022238312,-503.54977946,0.00032852,2]
[359448219,1746022238321,-500.0,0.00032852,5]
[359448220,1746022238331,-500.0,0.00032852,5]
[359448221,1746022238340,-1000.0,0.00032852,5]
[359448222,1746022238353,-1000.0,0.00032852,5]
[359448223,1746022238363,-150.0,0.00032873,5]
[359448224,1746022238372,-611.17695204,0.00032873,5]
[359448225,1746022238381,-500.0,0.00032873,5]
[359448226,1746022238391,-500.0,0.00032873,5]
[359448227,1746022238400,-531.26132297,0.00032873,5]
[359448228,1746022238410,-500.0,0.00032873,5]
[359448229,1746022238419,-520.95856706,0.00032873,5]
[359448230,1746022238429,-500.70419105,0.00032873,5]
[359448231,1746022238439,-500.0,0.00032873,5]
[359448232,1746022238449,-203.0,0.00032877,3]
[359448233,1746022238459,-164.79,0.000329,7]
[359448234,1746022238468,-5255.91,0.000329,30]
[359448235,1746022238478,-29152.47,0.000329,30]
[359448236,1746022238487,-187.403,0.00032913,34]
[359448237,1746022238497,-1000.0,0.00033152,5]
[359448238,1746022238506,-1000.0,0.00033152,5]
[359448239,1746022238516,-905.341494,0.00033165,2]
[359448240,1746022238537,-500.0,0.00033167,5]
[359448241,1746022238547,-23570.8200035,0.00033411,2]
[359448242,1746022238557,-203.46537282,0.00033683,2]
[359448243,1746022238567,-243.25504174,0.00034583,2]
[359448244,1746022238577,-545.0,0.00034728,2]
[359448245,1746022238587,-707.0,0.00034728,2]
[359448246,1746022238597,-2245.0,0.00034728,2]
[359448247,1746022238609,-531.14568577,0.00035798,13]
[359448248,1746022238619,-243.25504174,0.00036411,2]
[359448249,1746022238629,-500.0,0.0003652,60]
[359448250,1746022238639,-159.0,0.00036712,3]
[359448251,1746022238649,-203.46537282,0.00036875,2]
[359448252,1746022238659,-500.0,0.00037068,60]
[359448253,1746022238669,-500.0,0.00037616,60]
[359448254,1746022238840,-707.0,0.00037728,2]
[359448255,1746022238851,-2245.0,0.00037728,2]
[359448256,1746022238864,-164.79,0.000381,7]
[359448257,1746022238873,-154.2217497,0.00038133,4]
[359448258,1746022238883,-500.0,0.00038164,60]
[359448259,1746022238892,-150.0,0.00038173,5]
[359448260,1746022238902,-150.0,0.00038173,5]
[359448261,1746022238912,-23570.8200035,0.0003819,3]
[359448262,1746022238921,-160.0,0.0003819,3]
[359448263,1746022238931,-5255.91,0.000382,30]
[359448264,1746022238941,-29152.47,0.000382,30]
[359448265,1746022238951,-162.276085,0.0003822,30]
[359448266,1746022238961,-243.25504174,0.0003824,2]
[359448267,1746022238970,-1000.0,0.00038352,5]
[359448268,1746022238980,-400.0,0.00038356,2]
[359448269,1746022238989,-400.0,0.00038356,2]
[359448270,1746022238999,-400.0,0.00038356,2]
[359448271,1746022239009,-400.0,0.00038356,2]
[359448272,1746022239019,-400.0,0.00038356,2]
[359448273,1746022239028,-400.0,0.00038356,2]
[359448274,1746022239039,-400.0,0.00038356,2]
[359448275,1746022239050,-400.0,0.00038356,2]
[359448276,1746022239060,-400.0,0.00038356,2]
[359448277,1746022239070,-400.0,0.00038356,2]
[359448278,1746022239081,-400.0,0.00038356,2]
[359448279,1746022239091,-400.0,0.00038356,2]
[359448280,1746022239102,-400.0,0.00038356,2]
[359448281,1746022239113,-280.16719616,0.00038356,2]
[359448282,1746022239122,-167.26799121,0.00038356,2]
[359448283,1746022239131,-1000.0,0.00038399,15]
[359448284,1746022239141,-1000.0,0.00038399,15]
[359448285,1746022239151,-1000.0,0.00038399,15]
[359448286,1746022239161,-1000.0,0.00038399,15]
[359448287,1746022239171,-1000.0,0.00038399,15]
[359448288,1746022239181,-1000.0,0.00038399,15]
[359448289,1746022239191,-1000.0,0.00038399,15]
[359448290,1746022239201,-1000.0,0.00038399,15]
[359448291,1746022239211,-1000.0,0.00038399,15]
[359448292,1746022239220,-1000.0,0.00038399,15]
[359448293,1746022239229,-1000.0,0.00038399,15]
[359448294,1746022239238,-1000.0,0.00038399,15]
[359448295,1746022239247,-1000.0,0.00038399,15]
[359448296,1746022239257,-1000.0,0.00038399,15]
[359448297,1746022239268,-1000.0,0.00038399,15]
[359448298,1746022239278,-1000.0,0.00038399,15]
[359448299,1746022239287,-667.5000009,0.00038399,15]
[359448300,1746022239297,-600.9,0.000384,2]
[359448301,1746022239307,-500.0,0.00038712,60]
[359448302,1746022239317,-250.0,0.00038721,5]
[359448303,1746022239326,-250.0,0.00038721,5]
[359448304,1746022239336,-905.341494,0.00038933,2]
[359448306,1746022239345,-657.4520521,0.00039085,7]
[359448307,1746022239359,-500.0,0.0003926,60]
[359448308,1746022239369,-350.0,0.00039268,5]
[359448309,1746022239379,-350.0,0.00039268,5]
[359448311,1746022239392,-154.0,0.00039452,18]
[359448312,1746022239402,-27753.45154752,0.000396,2]
[359448313,1746022239413,-500.0,0.00039605,7]
[359448314,1746022239423,-4010.71741723,0.00039744,2]
[359448315,1746022239433,-503.48035962,0.0003978,30]
[359448316,1746022239443,-268.50183798,0.00039816,5]
[359448317,1746022239452,-450.0,0.00039816,5]
[359448318,1746022239462,-300.92831776,0.00039853,2]
[359448319,1746022239471,-23570.8200035,0.00039988,3]
[359448320,1746022239481,-400.0,0.00039998,2]
[359448321,1746022239491,-400.0,0.00039998,2]
[359448322,1746022239500,-400.0,0.00039998,2]
[359448323,1746022239510,-400.0,0.00039998,2]
[359448324,1746022239519,-400.0,0.00039998,2]
[359448325,1746022239529,-400.0,0.00039998,2]
[359448327,1746022239540,-300.0,0.00039998,2]
[359448329,1746022239551,-400.0,0.00039998,2]
[359448331,1746022239560,-6000.0,0.0004,3]
[359448332,1746022239570,-1297.779594,0.0004,32]
[359448333,1746022239580,-167.09771443,0.00040068,120]
[359448334,1746022239590,-203.46537282,0.00040068,2]
[359448335,1746022239600,-243.25504174,0.00040068,28]
[359448336,1746022239613,-2566.889,0.0004008,90]
[359448337,1746022239623,-1762.68167336,0.0004008,110]
[359448338,1746022239633,-243.49341231,0.000401,19]
[359448339,1746022239645,-151.0,0.00040137,14]
[359448340,1746022239655,-159.753839,0.00040137,14]
[359448341,1746022239665,-151.0,0.00040137,14]
[359448342,1746022239675,-151.0,0.00040137,14]
[359448343,1746022239685,-151.0,0.00040137,14]
[359448344,1746022239695,-151.0,0.00040137,14]
[359448345,1746022239704,-200.0,0.00040145,2]
[359448346,1746022239715,-9178.90829474,0.00040145,120]
[359448347,1746022239725,-182.04053198,0.00040146,7]
[359448348,1746022239735,-182.04053198,0.00040146,30]
[359448349,1746022239745,-182.04053198,0.00040146,120]
[359448350,1746022239756,-155.654734,0.00040146,14]
[359448351,1746022239766,-500.0,0.00040146,20]
[359448352,1746022239777,-151.0,0.00040146,20]
[359448353,1746022239787,-203.04410529,0.00040146,20]
[359448354,1746022239803,-151.0,0.00040146,20]
[359448355,1746022239813,-151.0,0.00040146,20]
[359448356,1746022239824,-151.0,0.00040146,2]
[359448357,1746022239835,-151.0,0.00040146,20]
[359448358,1746022239848,-151.0,0.00040146,20]
[359448359,1746022239861,-200.0,0.00040155,120]
[359448360,1746022239871,-94283.2800139,0.00040158,3]
[359448361,1746022239881,-197.911077,0.00040167,14]
[359448362,1746022239892,-151.0,0.00040167,14]
[359448363,1746022239902,-151.0,0.00040167,14]
[359448364,1746022239912,-151.0,0.00040167,14]
[359448365,1746022239922,-151.0,0.00040167,14]
[359448366,1746022239932,-151.0,0.00040167,14]
[359448367,1746022239941,-151.0,0.00040167,14]
[359448368,1746022239951,-151.0,0.00040167,14]
[359448369,1746022239961,-151.0,0.00040167,14]
[359448370,1746022239971,-151.0,0.00040167,14]
[359448371,1746022239981,-151.0,0.00040167,14]
[359448372,1746022239991,-151.0,0.00040167,14]
[359448373,1746022240001,-151.0,0.00040167,14]
[359448374,1746022240011,-173.502964,0.00040167,14]
[359448375,1746022240022,-173.502964,0.00040167,14]
[359448376,1746022240032,-173.502964,0.00040167,14]
[359448377,1746022240042,-173.502964,0.00040167,14]
[359448378,1746022240052,-151.0,0.00040167,14]
[359448379,1746022240062,-151.0,0.00040167,14]
[359448380,1746022240072,-151.0,0.00040168,14]
[359448381,1746022240082,-156.390972,0.00040168,14]
[359448382,1746022240091,-151.0,0.00040168,14]
[359448383,1746022240101,-151.0,0.00040168,14]
[359448384,1746022240114,-151.0,0.00040168,14]
[359448385,1746022240124,-151.0,0.00040168,14]
[359448386,1746022240134,-151.0,0.00040168,2]
[359448387,1746022240144,-151.0,0.00040168,2]
[359448388,1746022240153,-151.0,0.00040168,2]
[359448389,1746022240163,-221.769767,0.00040168,2]
[359448390,1746022240173,-151.0,0.00040168,14]
[359448391,1746022240182,-151.0,0.00040168,14]
[359448392,1746022240192,-151.0,0.00040168,14]
[359448393,1746022240202,-1241.312692,0.00040168,2]
[359448394,1746022240212,-1241.312692,0.00040168,2]
[359448395,1746022240222,-1241.312692,0.00040168,2]
[359448396,1746022240232,-1241.312692,0.00040168,2]
[359448397,1746022240242,-1241.312692,0.00040168,2]
[359448398,1746022240251,-1241.312692,0.00040168,2]
[359448399,1746022240261,-155.245476,0.00040168,14]
[359448400,1746022240271,-155.245476,0.00040168,14]
[359448401,1746022240281,-155.245476,0.00040168,14]
[359448402,1746022240291,-155.245476,0.00040168,14]
[359448403,1746022240301,-155.245476,0.00040168,14]
[359448404,1746022240311,-155.245476,0.00040168,14]
[359448405,1746022240321,-253.344919,0.00040168,14]
[359448406,1746022240330,-253.344919,0.00040168,14]
[359448407,1746022240340,-253.344919,0.00040168,14]
[359448408,1746022240350,-253.344919,0.00040168,14]
[359448409,1746022240362,-253.344919,0.00040168,14]
[359448410,1746022240372,-253.344919,0.00040168,14]
[359448411,1746022240383,-151.0,0.00040168,14]
[359448412,1746022240393,-151.0,0.00040168,14]
[359448413,1746022240403,-151.0,0.00040168,14]
[359448414,1746022240413,-151.0,0.00040168,14]
[359448415,1746022240423,-200.0,0.0004017,120]
[359448416,1746022240432,-212949.04623831,0.00040171,2]
[359448417,1746022240442,-12961.34513829,0.00040171,3]
[359448418,1746022240451,-151.0,0.00040171,14]
[359448419,1746022240461,-151.0,0.00040171,14]
[359448420,1746022240470,-151.0,0.00040171,14]
[359448421,1746022240480,-6692393.61642902,0.00040171,20]
[359448422,1746022240495,-9000.0,0.00040171,20]
[359448423,1746022240507,-8161.36208166,0.00040171,20]